bitfinex-derivatives/quotes_SOLF0:USTF0_20260108
["timestamp","ask_amount","ask_price","bid_price","bid_amount"]
[1767871421348,1.39915302,134.66,134.59,1.46750004]
[1767871422561,6.6919,134.65,134.59,1.46750004]
[1767871423052,1.39915302,134.64,134.57,6.90671148]
[1767871423261,1.39915302,134.64,134.56,15.07021152]
[1767871423447,1.39915302,134.64,134.57,1.46750004]
[1767871424050,6.6933,134.63,134.57,1.46750004]
[1767871424448,1.39915302,134.64,134.57,1.46750004]
[1767871425160,8.09195302,134.64,134.57,1.46750004]
[1767871425963,6.6929,134.63,134.57,1.46750004]
[1767871426563,8.09205302,134.63,134.57,1.46750004]
[1767871427654,6.6933,134.62,134.57,1.46750004]
[1767871428159,8.09245302,134.62,134.55,15.07091152]
[1767871428462,8.09245302,134.62,134.55,8.16420004]
[1767871428861,8.09355302,134.6,134.54,94.76671148]
[1767871429159,1.39915302,134.59,134.54,6.90671148]
[1767871429354,1.39915302,134.59,134.53,15.07151152]
[1767871432661,8.09415302,134.59,134.53,8.37421152]
[1767871432865,1.39915302,134.59,134.53,1.46750004]
[1767871433762,1.39915302,134.58,134.51,15.07261152]
[1767871434062,1.39915302,134.58,134.51,1.46750004]
[1767871434565,6.6958,134.57,134.51,8.37421152]
[1767871435561,6.6958,134.57,134.51,15.07291152]
[1767871438558,6.6958,134.57,134.52,1.46750004]
[1767871439364,1.39915302,134.6,134.53,1.46750004]
[1767871440367,1.39915302,134.59,134.51,15.07251152]
[1767871440872,1.39915302,134.57,134.51,1.46750004]
[1767871441667,6.6964,134.56,134.51,1.46750004]
[1767871441870,1.39915302,134.57,134.51,1.46750004]
[1767871442268,1.39915302,134.57,134.51,8.37421152]
[1767871443469,1.39915302,134.57,134.51,6.90671148]
[1767871443678,8.09505302,134.57,134.5,13.60591148]
[1767871443874,8.09505302,134.57,134.5,15.03862762]
[1767871444376,1.35953242,134.55,134.5,6.90671148]
[1767871444875,1.35953242,134.55,134.5,6.6992]
[1767871445075,1.35953242,134.55,134.49,8.33942762]
[1767871446787,1.35953242,134.55,134.49,8.37453252]
[1767871447790,8.05643242,134.55,134.49,8.37453252]
[1767871450589,1.35953242,134.53,134.48,1.638e-05]
[1767871450881,1.35953242,134.53,134.47,1.638e-05]
[1767871451086,1.35953242,134.53,134.46,1.43271614]
[1767871451590,6.6984,134.52,134.46,1.43271614]
[1767871452989,6.6989,134.51,134.46,1.43271614]
[1767871455894,1.35953242,134.52,134.46,1.43271614]
[1767871456395,8.05793242,134.52,134.46,1.43271614]
[1767871456791,1.35953242,134.51,134.43,10.50926014]
[1767871457002,1.35953242,134.49,134.43,1.43271614]
[1767871457298,1.35953242,134.51,134.43,1.43271614]
[1767871457683,8.05833242,134.51,134.43,1.43271614]
[1767871457994,1.35953242,134.51,134.43,1.43271614]
[1767871458691,8.05933242,134.49,134.43,1.43271614]
[1767871461590,1.35953242,134.49,134.44,6.7023]
[1767871461790,1.35953242,134.49,134.41,1.43271614]
[1767871462698,1.35953242,134.48,134.42,6.7032]
[1767871462898,1.35953242,134.48,134.42,8.13591614]
[1767871466394,8.05983242,134.48,134.42,1.43271614]
[1767871470803,8.05983242,134.48,134.42,8.13601614]
[1767871472598,8.15376629,134.47,134.4,8.08268776]
[1767871472908,1.45286629,134.49,134.42,3.74175016]
[1767871473407,1.45286629,134.49,134.44,2.3631624]
[1767871474591,1.45286629,134.49,134.44,9.0653624]
[1767871479199,1.45286629,134.49,134.44,2.3631624]
[1767871480706,1.45286629,134.49,134.44,3.74175016]
[1767871482410,1.45286629,134.52,134.46,3.74175016]
[1767871482597,1.45286629,134.54,134.47,1.37858776]
[1767871482796,1.45286629,134.54,134.48,2.3631624]
[1767871483102,6.6978,134.53,134.48,2.3631624]
[1767871483699,6.6978,134.53,134.48,3.74175016]
[1767871484708,8.15066629,134.53,134.48,3.74175016]
[1767871486715,8.15066629,134.53,134.48,1.37858776]
[1767871492718,6.6978,134.53,134.48,1.37858776]
[1767871496620,8.15066629,134.53,134.48,1.37858776]
[1767871497319,8.15066629,134.53,134.47,9.0639624]
[1767871497522,1.45286629,134.52,134.47,9.0639624]
[1767871498022,1.45286629,134.52,134.47,10.44255016]
[1767871500729,8.15126629,134.52,134.47,1.37858776]
[1767871501728,1.45286629,134.56,134.49,1.37858776]
[1767871502620,117.5087,134.62,134.51,1.4394621]
[1767871502621,106.4992624,134.6,134.51,1.4394621]
[1767871502822,1.40839078,134.59,134.51,1.4394621]
[1767871503227,1.40839078,134.59,134.52,2.3631624]
[1767871503530,8.10419078,134.57,134.51,1.4394621]
[1767871504030,1.4077302,134.56,134.5,2.3631624]
[1767871504521,1.4077302,134.56,134.48,2.3631624]
[1767871504522,1.4077302,134.55,134.48,2.3631624]
[1767871505025,1.4077302,134.53,134.47,1.45449323]
[1767871505425,1.4077302,134.53,134.47,3.81765563]
[1767871506525,1.4077302,134.53,134.47,10.51835563]
[1767871510425,1.4077302,134.53,134.47,1.45449323]
[1767871510830,8.1055302,134.53,134.47,1.45449323]
[1767871513634,2.3631624,134.56,134.48,1.45449323]
[1767871513841,1.4077302,134.55,134.48,1.45449323]
[1767871514542,8.1051302,134.54,134.48,1.45449323]
[1767871518232,8.1051302,134.54,134.48,8.15479323]
[1767871519730,1.4077302,134.53,134.48,8.15479323]
[1767871521148,8.1045302,134.55,134.48,8.15479323]
[1767871521531,1.4077302,134.54,134.48,8.15479323]
[1767871521733,1.4077302,134.56,134.5,8.15369323]
[1767871521939,1.4077302,134.56,134.5,15.09635758]
[1767871522534,8.1041302,134.56,134.5,15.09635758]
[1767871522936,1.4077302,134.56,134.51,6.6988]
[1767871523245,1.4077302,134.56,134.5,8.39715758]
[1767871523947,1.4077302,134.56,134.5,15.09635758]
[1767871524752,8.1042302,134.56,134.5,15.09635758]
[1767871525940,1.4077302,134.55,134.49,6.94266435]
[1767871526450,6.6983,134.52,134.46,17.23183723]
[1767871526642,6.6983,134.52,134.46,8.15529323]
[1767871528250,1.4077302,134.55,134.48,1.45449323]
[1767871529652,6.6973,134.54,134.48,8.15459323]
[1767871529855,6.6973,134.54,134.49,1.45449323]
[1767871532061,6.6967,134.56,134.5,1.45449323]
[1767871533657,6.6967,134.56,134.5,8.15359323]
[1767871535052,1.42612747,134.55,134.47,12.7647749]
[1767871535259,1.42612747,134.54,134.45,1.42519182]
[1767871536655,8.12492747,134.52,134.45,8.12689182]
[1767871539462,1.42612747,134.52,134.46,6.7012]
[1767871540856,1.42612747,134.52,134.46,8.12639182]
[1767871543866,1.48,134.52,134.42,1.42519182]
[1767871544055,1.42612747,134.49,134.42,1.42519182]
[1767871545560,8.12592747,134.49,134.42,1.42519182]
[1767871547167,1.42612747,134.48,134.42,1.42519182]
[1767871549565,1.42612747,134.48,134.42,8.12839182]
[1767871550775,1.42612747,134.5,134.44,1.42519182]
[1767871551469,1.42612747,134.52,134.45,1.42519182]
[1767871552565,8.12452747,134.52,134.45,8.12689182]
[1767871553368,1.42612747,134.52,134.46,1.42519182]
[1767871555071,1.42612747,134.52,134.46,8.12629182]
[1767871559076,1.42612747,134.52,134.47,6.7007]
[1767871559976,1.42612747,134.58,134.49,1.42519182]
[1767871560174,1.42612747,134.58,134.51,1.42519182]
[1767871560370,1.42612747,134.58,134.52,1.42519182]
[1767871560971,104.1241,134.62,134.5,3.6882309]
[1767871560972,1.42612747,134.57,134.5,1.42519182]
[1767871561874,1.42612747,134.59,134.51,1.42519182]
[1767871563580,8.12132747,134.59,134.52,7.96000277]
[1767871569187,8.12132747,134.59,134.53,1.31940708]
[1767871569386,22.35,134.65,134.56,1.31940708]
[1767871569586,1.31246458,134.64,134.57,1.31940708]
[1767871570283,8.00496458,134.64,134.57,8.01500708]
[1767871574181,1.31246458,134.64,134.58,8.01460708]
[1767871574584,8.00416458,134.66,134.59,1.31940708]
[1767871575493,1.31246458,134.65,134.59,1.31940708]
[1767871576385,8.00436458,134.65,134.59,1.31940708]
[1767871576782,1.31246458,134.66,134.59,1.31940708]
[1767871578684,8.00396458,134.66,134.59,8.01420708]
[1767871582800,8.00436458,134.65,134.59,1.31940708]
[1767871586901,1.31246458,134.65,134.59,1.31940708]
[1767871588599,1.31246458,134.65,134.6,6.6942]
[1767871588898,1.31246458,134.65,134.59,1.31940708]
[1767871590095,1.31246458,134.65,134.59,8.01420708]
[1767871590294,1.31246458,134.65,134.59,1.31940708]
[1767871591096,1.31246458,134.65,134.6,6.6941]
[1767871592992,1.31246458,134.65,134.58,6.6949]
[1767871593197,195.6438309,134.68,134.54,89.03159345]
[1767871593198,1.27216245,134.62,134.54,89.03159345]
[1767871593398,1.27216245,134.62,134.55,1.21159345]
[1767871593594,1.27216245,134.62,134.55,7.90839345]
[1767871594394,7.96626245,134.61,134.55,1.21159345]
[1767871595002,1.27216245,134.6,134.54,94.5173]
[1767871595804,1.27216245,134.6,134.54,95.72889345]
[1767871597497,1.27216245,134.6,134.54,89.03159345]
[1767871598298,1.27216245,134.6,134.54,1.21159345]
[1767871598702,6.6949,134.59,134.54,1.21159345]
[1767871599703,1.27216245,134.62,134.55,6.6968]
[1767871599901,1.27216245,134.62,134.55,1.21159345]
[1767871600301,1.27216245,134.61,134.55,1.21159345]
[1767871601602,7.96606245,134.61,134.55,1.21159345]
[1767871604014,1.27216245,134.65,134.57,1.21159345]
[1767871604212,1.27216245,134.65,134.55,87.84]
[1767871604213,1.27216245,134.65,134.59,1.21159345]
[1767871605599,1.27216245,134.67,134.59,1.21159345]
[1767871606308,6.6914,134.66,134.6,1.21159345]
[1767871607009,1.27216245,134.67,134.61,1.21159345]
[1767871608704,1.27216245,134.67,134.61,7.90539345]
[1767871608912,1.27216245,134.67,134.61,1.21159345]
[1767871609310,7.96306245,134.67,134.61,1.21159345]
[1767871614916,1.27216245,134.66,134.61,1.21159345]
[1767871617213,6.6909,134.67,134.61,1.21159345]
[1767871618318,7.96306245,134.67,134.61,1.21159345]
[1767871620923,6.6914,134.66,134.61,1.21159345]
[1767871621522,1.27216245,134.65,134.59,17.13558657]
[1767871622422,6.6914,134.66,134.61,2.3592844]
[1767871622623,6.6914,134.66,134.61,3.4931062]
[1767871623723,1.21052223,134.67,134.61,3.4931062]
[1767871623724,7.90142223,134.67,134.61,3.4931062]
[1767871628230,1.14067916,134.66,134.6,6.6943]
[1767871629728,1.14067916,134.66,134.6,14.7000083]
[1767871633832,1.14067916,134.66,134.6,7.83009958]
[1767871634033,6.6918,134.65,134.6,1.13579958]
[1767871634531,7.83207916,134.66,134.6,1.13579958]
[1767871635432,6.692,134.65,134.6,1.13579958]
[1767871635739,1.14067916,134.64,134.59,6.6948]
[1767871636630,1.14067916,134.64,134.59,7.83059958]
[1767871638239,1.14067916,134.64,134.59,14.7005083]
[1767871638935,1.14067916,134.7,134.63,2.3592844]
[1767871639136,1.14067916,134.7,134.65,2.3592844]
[1767871639527,6.6889,134.71,134.65,3.49508398]
[1767871639735,1.14067916,134.72,134.66,1.13579958]
[1767871641547,1.14067916,134.72,134.66,7.82709958]
[1767871642840,7.82907916,134.72,134.66,1.13579958]
[1767871645843,7.82967916,134.71,134.65,2.3592844]
[1767871646038,1.14067916,134.71,134.65,3.49508398]
[1767871646442,1.14067916,134.7,134.63,3.49508398]
[1767871647050,1.14067916,134.7,134.64,1.13579958]
[1767871648053,7.83007916,134.7,134.64,1.13579958]
[1767871648942,6.6894,134.7,134.64,1.13579958]
[1767871649448,6.6894,134.7,134.64,3.49508398]
[1767871650455,6.6899,134.69,134.64,1.13579958]
[1767871650654,1.14067916,134.69,134.62,10.3649927]
[1767871650959,1.14067916,134.69,134.61,96.876544]
[1767871650960,1.14067916,134.68,134.61,6.86990872]
[1767871652555,7.83147916,134.68,134.61,8.01166433]
[1767871653053,7.83147916,134.68,134.64,2.3592844]
[1767871653259,1.14067916,134.68,134.64,2.3592844]
[1767871653748,1.14067916,134.68,134.63,6.86990872]
[1767871655149,106.4036844,134.72,134.62,10.19434001]
[1767871655150,7.82561874,134.67,134.62,9.22919312]
[1767871655457,7.82561874,134.67,134.61,6.86990872]
[1767871656452,7.82561874,134.67,134.61,8.01166433]
[1767871657858,7.82611874,134.66,134.6,6.86990872]
[1767871658058,1.13471874,134.66,134.6,6.86990872]
[1767871659258,6.6919,134.65,134.6,6.86990872]
[1767871659458,7.82661874,134.65,134.59,6.86990872]
[1767871660167,6.6923,134.64,134.59,6.86990872]
[1767871660466,6.6923,134.64,134.58,88.92175561]
[1767871660467,6.6923,134.64,134.58,95.79166433]
[1767871662065,6.6923,134.64,134.59,6.86990872]
[1767871662262,7.82651874,134.65,134.59,6.86990872]
[1767871662966,7.82651874,134.65,134.59,8.01166433]
[1767871664163,7.82651874,134.65,134.59,1.14175561]
[1767871664356,7.82651874,134.65,134.59,8.08345106]
[1767871664861,195.55061911,134.69,134.6,8.08345106]
[1767871664862,1.13471874,134.67,134.6,8.08345106]
[1767871665767,6.6913,134.66,134.6,8.08345106]
[1767871666162,6.6913,134.66,134.6,14.77755106]
[1767871670773,1.13471874,134.66,134.6,8.08345106]
[1767871670972,1.13471874,134.66,134.6,1.14175561]
[1767871672776,6.6924,134.64,134.6,1.14175561]
[1767871673676,6.6929,134.63,134.59,6.94169545]
[1767871673881,1.13471874,134.65,134.58,8.08345106]
[1767871674576,6.6932,134.63,134.58,8.08345106]
[1767871678779,6.6935,134.62,134.58,1.14175561]
[1767871679878,6.6929,134.63,134.58,1.14175561]
[1767871683187,6.6923,134.64,134.58,7.83705561]
[1767871683388,6.6923,134.64,134.58,14.77875106]
[1767871683576,1.10543049,134.63,134.55,6.94169545]
[1767871683777,1.10543049,134.63,134.56,6.94169545]
[1767871684180,6.6923,134.64,134.58,1.0736124]
[1767871685281,6.6929,134.63,134.58,1.0736124]
[1767871691889,7.77424551,134.62,134.56,1.0736124]
[1767871692186,1.08084551,134.62,134.56,1.0736124]
[1767871692895,6.6939,134.61,134.56,1.0736124]
[1767871693490,6.6939,134.61,134.56,8.01261802]
[1767871695191,1.08084551,134.62,134.56,8.01261802]
[1767871695394,6.6933,134.63,134.58,6.93900562]
[1767871695585,7.77414551,134.63,134.58,6.93900562]
[1767871696695,6.6924,134.64,134.58,8.01261802]
[1767871697393,6.6924,134.64,134.58,14.70781802]
[1767871697884,7.77324551,134.64,134.58,14.70781802]
[1767871698195,7.77324551,134.64,134.59,6.93900562]
[1767871700487,7.77324551,134.64,134.58,14.70781802]
[1767871701596,7.77324551,134.64,134.59,6.93900562]
[1767871703597,7.77324551,134.64,134.59,8.01261802]
[1767871703789,6.6918,134.65,134.6,6.93900562]
[1767871704103,6.6918,134.65,134.6,8.01261802]
[1767871704398,6.6918,134.65,134.61,6.93900562]
[1767871706892,6.6918,134.65,134.61,8.01261802]
[1767871708292,6.6918,134.66,134.61,8.01261802]
[1767871709199,7.77264551,134.66,134.61,8.01261802]
[1767871710910,6.6909,134.67,134.62,6.93900562]
[1767871711203,7.77174551,134.67,134.62,6.93900562]
[1767871715309,7.77174551,134.67,134.61,14.70621802]
[1767871716606,1.08084551,134.67,134.62,7.72799625]
[1767871716813,7.74168094,134.69,134.63,6.93900562]
[1767871718513,7.74168094,134.69,134.63,9.29491905]
[1767871719310,7.74168094,134.69,134.63,2.35591343]
[1767871721810,7.74168094,134.69,134.63,10.08340968]
[1767871722008,7.74168094,134.69,134.64,1.03489625]
[1767871722203,6.6894,134.7,134.64,7.97390187]
[1767871722412,6.6894,134.7,134.65,2.35591343]
[1767871726017,6.69,134.69,134.64,1.03489625]
[1767871726516,1.05138094,134.68,134.62,1.03489625]
[1767871726914,6.6909,134.67,134.62,1.03489625]
[1767871728221,6.6909,134.67,134.62,7.97390187]
[1767871728519,6.6909,134.67,134.62,3.39080968]
[1767871729219,6.6909,134.67,134.62,10.3298153]
[1767871730119,6.6909,134.67,134.62,3.39080968]
[1767871730321,6.6909,134.67,134.62,10.3298153]
[1767871733133,6.6909,134.67,134.62,3.39080968]
[1767871733325,7.74178094,134.68,134.62,10.3298153]
[1767871735032,7.74178094,134.68,134.62,17.01942047]
[1767871736630,1.05138094,134.68,134.63,6.6927]
[1767871736836,1.05138094,134.69,134.63,7.72759625]
[1767871738038,7.74128094,134.69,134.63,7.72759625]
[1767871738440,7.74128094,134.69,134.63,14.66290704]
[1767871739041,7.74128094,134.69,134.63,7.72759625]
[1767871739338,7.74128094,134.69,134.63,14.66290704]
[1767871741435,1.05138094,134.69,134.64,6.6922]
[1767871741640,1.05138094,134.69,134.64,9.04811343]
[1767871742041,1.05138094,134.69,134.64,15.98342422]
[1767871742436,438.3448,134.78,134.65,7.72212092]
[1767871742437,7.75824126,134.71,134.65,7.72212092]
[1767871742737,1.06934126,134.71,134.66,3.38623435]
[1767871743043,1.06934126,134.71,134.66,10.32154514]
[1767871743744,6.6884,134.72,134.66,17.01284514]
[1767871744240,7.70957388,134.72,134.66,17.01284514]
[1767871744846,7.70957388,134.72,134.66,10.07753435]
[1767871748354,6.6888,134.71,134.66,3.38623435]
[1767871750646,1.02117388,134.7,134.65,6.93531079]
[1767871750842,1.02117388,134.7,134.64,10.30049705]
[1767871751665,6.69,134.69,134.64,10.30049705]
[1767871752752,1.02117388,134.7,134.64,16.99279705]
[1767871752958,1.02117388,134.7,134.65,1.00927283]
[1767871754550,7.71057388,134.7,134.65,1.00927283]
[1767871755958,1.02117388,134.7,134.65,1.00927283]
[1767871756253,1.02117388,134.7,134.65,7.94458362]
[1767871759762,6.6899,134.69,134.65,7.94458362]
[1767871759954,7.71107388,134.69,134.65,6.93531079]
[1767871761061,6.6899,134.69,134.65,6.93531079]
[1767871763564,6.6893,134.7,134.65,6.93531079]
[1767871763863,6.6893,134.7,134.65,7.94458362]
[1767871764361,1.02117388,134.71,134.65,14.63638362]
[1767871765067,1.02117388,134.71,134.66,2.35591343]
[1767871765565,7.71007388,134.71,134.66,2.35591343]
[1767871766766,6.6884,134.72,134.66,16.99169705]
[1767871766972,7.70957388,134.72,134.66,16.99169705]
[1767871768965,7.70957388,134.72,134.67,1.00927283]
[1767871770578,7.70957388,134.72,134.67,7.94458362]
[1767871770782,7.70957388,134.72,134.67,1.00927283]
[1767871774376,6.6889,134.71,134.66,6.93531079]
[1767871774580,0.96699366,134.7,134.65,10.2889578]
[1767871775075,0.96699366,134.7,134.65,7.93304437]
[1767871775268,0.96699366,134.7,134.65,10.2889578]
[1767871775676,0.96699366,134.7,134.65,16.9807578]
[1767871778877,6.6889,134.71,134.65,16.9807578]
[1767871779375,6.6889,134.71,134.66,7.93304437]
[1767871782379,7.65639366,134.7,134.66,6.93531079]
[1767871782577,0.96699366,134.69,134.65,6.93531079]
[1767871783582,7.65689366,134.69,134.65,6.93531079]
[1767871784084,7.65689366,134.69,134.64,7.93304437]
[1767871811127,0.96699366,134.69,134.64,14.62514437]
[1767871811331,0.96699366,134.69,134.65,6.93531079]
[1767871813530,7.65689366,134.69,134.65,6.93531079]
[1767871816533,7.65689366,134.69,134.64,7.93304437]
[1767871818233,7.55865529,134.68,134.63,6.93531079]
[1767871818433,7.55865529,134.68,134.62,102.30824236]
[1767871819837,7.55865529,134.68,134.63,0.89973157]
[1767871822540,0.86835529,134.68,134.63,14.52784236]
[1767871823537,6.69,134.69,134.64,0.89973157]
[1767871824235,0.86835529,134.7,134.64,7.59203157]
[1767871824539,0.86835529,134.7,134.65,0.89973157]
[1767871825541,7.55775529,134.7,134.65,0.89973157]
[1767871827337,7.55775529,134.7,134.65,7.83504236]
[1767871838042,7.5806287,134.68,134.65,1.079e-05]
[1767871838344,7.5806287,134.68,134.64,1.079e-05]
[1767871842048,0.8902287,134.67,134.61,16.78489575]
[1767871843548,0.8902287,134.67,134.62,10.09159575]
[1767871844350,7.5811287,134.67,134.62,10.09159575]
[1767871844644,7.5811287,134.67,134.62,0.83958826]
[1767871847460,6.6909,134.67,134.63,0.83958826]
[1767871847761,7.5803287,134.69,134.63,0.83958826]
[1767871848563,7.5803287,134.69,134.63,7.53238826]
[1767871848767,7.5803287,134.69,134.64,3.19629736]
[1767871849965,6.6904,134.68,134.64,0.83958826]
[1767871850164,7.5806287,134.68,134.62,19.14160485]
[1767871852366,7.5806287,134.68,134.63,0.83958826]
[1767871856272,6.6899,134.69,134.64,3.19629736]
[1767871860874,6.6899,134.69,134.64,9.88859736]
[1767871861569,6.6894,134.7,134.65,0.83958826]
[1767871861775,0.8902287,134.72,134.66,3.19629736]
[1767871863364,7.5790287,134.72,134.66,3.19629736]
[1767871863766,7.5790287,134.72,134.66,9.88759736]
[1767871864365,7.5790287,134.72,134.67,0.8487763]
[1767871864569,7.5790287,134.72,134.68,2.3567091]
[1767871864770,6.6879,134.73,134.68,3.2054854]
[1767871865283,6.6884,134.72,134.68,3.2054854]
[1767871865574,0.7847641,134.73,134.65,2.3567091]
[1767871866577,6.6894,134.7,134.65,2.3567091]
[1767871866967,0.7847641,134.71,134.65,0.8487763]
[1767871867169,0.7847641,134.71,134.66,2.3567091]
[1767871868875,0.7847641,134.71,134.66,3.2054854]
[1767871870178,6.6888,134.72,134.66,9.8967854]
[1767871872273,7.4735641,134.72,134.66,9.8967854]
[1767871873077,6.6889,134.71,134.66,0.8487763]
[1767871876976,7.4736641,134.71,134.66,0.8487763]
[1767871878974,0.7847641,134.65,134.58,9.25200749]
[1767871879177,0.7847641,134.65,134.58,0.8487763]
[1767871880082,0.7847641,134.62,134.55,9.25200749]
[1767871880276,0.7847641,134.62,134.52,0.8487763]
[1767871880277,0.7847641,134.61,134.52,0.8487763]
[1767871880474,0.7847641,134.59,134.52,0.8487763]
[1767871880781,0.7847641,134.57,134.48,10.10078379]
[1767871880981,0.7847641,134.57,134.45,10.10078379]
[1767871880982,0.7847641,134.55,134.45,10.10078379]
[1767871881182,2.3567091,134.52,134.41,9.25200749]
[1767871881379,104.2201,134.49,134.39,9.25200749]
[1767871881573,0.7847641,134.48,134.39,2.3567091]
[1767871881882,104.1997,134.52,134.39,2.3567091]
[1767871881883,3.1414732,134.51,134.44,0.8487763]
[1767871882180,7.4829641,134.53,134.44,3.2054854]
[1767871882386,104.9528641,134.56,134.47,0.8487763]
[1767871882580,104.9528641,134.56,134.48,0.8487763]
[1767871882782,104.9585641,134.55,134.45,0.8487763]
[1767871882985,104.9585641,134.55,134.49,2.3567091]
[1767871882986,0.7847641,134.55,134.49,2.3567091]
[1767871883387,0.7847641,134.58,134.49,2.3567091]
[1767871883990,0.7847641,134.58,134.51,2.3567091]
[1767871884190,0.7847641,134.58,134.51,3.2054854]
[1767871884391,0.7847641,134.62,134.52,0.8487763]
[1767871884688,0.7847641,134.62,134.56,2.3567091]
[1767871884886,104.1002,134.65,134.57,0.8487763]
[1767871884887,0.7847641,134.65,134.57,0.8487763]
[1767871885084,0.7847641,134.68,134.6,2.3567091]
[1767871885494,7.4736641,134.71,134.62,3.2054854]
[1767871885791,9.8303732,134.71,134.62,3.2054854]
[1767871886285,0.7847641,134.68,134.59,0.8487763]
[1767871886483,3.1414732,134.68,134.6,0.8487763]
[1767871886875,0.7847641,134.68,134.6,0.8487763]
[1767871887074,2.3567091,134.67,134.58,6.695]
[1767871887290,0.7847641,134.67,134.58,0.8487763]
[1767871887589,0.7847641,134.67,134.59,3.2054854]
[1767871887785,2.3567091,134.68,134.6,0.8487763]
[1767871888290,3.1414732,134.68,134.6,0.8487763]
[1767871888484,2.3567091,134.68,134.6,0.8487763]
[1767871888683,9.0469091,134.69,134.6,0.8487763]
[1767871889387,3.1414732,134.67,134.6,0.8487763]
[1767871890188,3.1414732,134.67,134.58,87.82]
[1767871890189,9.0478091,134.67,134.58,87.82]
[1767871890485,3.1414732,134.65,134.56,87.82]
[1767871890691,3.1414732,134.65,134.56,88.6687763]
[1767871890887,3.1414732,134.65,134.57,0.8487763]
[1767871891089,3.1414732,134.68,134.58,0.8487763]
[1767871892088,9.8319732,134.68,134.59,0.8487763]
[1767871893597,3.1414732,134.68,134.6,0.80574265]
[1767871893891,9.0462091,134.7,134.61,0.80574265]
[1767871894094,2.3567091,134.72,134.63,0.80574265]
[1767871894289,2.3567091,134.73,134.64,0.80574265]
[1767871894896,2.3567091,134.73,134.64,3.16245175]
[1767871895193,2.3567091,134.73,134.65,7.49754265]
[1767871896300,7.5139361,134.74,134.66,0.80574265]
[1767871897400,3.1830452,134.73,134.66,0.80574265]
[1767871898497,9.8710452,134.73,134.64,2.3567091]
[1767871899091,9.8710452,134.73,134.64,3.16245175]
[1767871899395,9.8710452,134.73,134.64,7.49784265]
[1767871899700,0.8263361,134.74,134.65,3.16245175]
[1767871900495,0.8263361,134.74,134.65,0.80574265]
[1767871900695,7.5138361,134.74,134.65,7.49734265]
[1767871900898,7.5138361,134.74,134.66,0.80574265]
[1767871902700,7.5138361,134.74,134.67,0.80574265]
[1767871904105,0.8263361,134.72,134.64,95.27774265]
[1767871904406,0.8263361,134.72,134.64,88.58574265]
[1767871904799,7.5153361,134.71,134.64,88.58574265]
[1767871906290,6.6896,134.7,134.64,87.78]
[1767871906497,7.5159361,134.7,134.64,87.78]
[1767871908201,104.039,134.73,134.64,87.78]
[1767871908202,7.5162361,134.69,134.64,87.78]
[1767871908607,0.8263361,134.69,134.61,0.80574265]
[1767871908797,7.5168361,134.68,134.61,0.80574265]
[1767871909199,0.8263361,134.68,134.6,6.6941]
[1767871909718,0.8263361,134.68,134.6,7.49984265]
[1767871910006,6.6902,134.69,134.62,0.80574265]
[1767871910212,0.8263361,134.71,134.62,0.80574265]
[1767871911208,6.69,134.69,134.62,7.49894265]
[1767871911404,7.5163361,134.69,134.62,0.80574265]
[1767871912517,0.8263361,134.69,134.59,7.50074265]
[1767871912716,0.8263361,134.69,134.59,0.80574265]
[1767871913212,6.6917,134.67,134.6,6.6949]
[1767871913410,0.8263361,134.67,134.56,0.80574265]
[1767871914310,6.6937,134.63,134.56,0.80574265]
[1767871914504,7.5200361,134.63,134.56,0.80574265]
[1767871914812,0.8263361,134.63,134.56,0.80574265]
[1767871915008,6.694,134.62,134.56,0.80574265]
[1767871915209,0.8263361,134.63,134.56,0.80574265]
[1767871915610,0.8263361,134.66,134.56,0.80574265]
[1767871916800,6.6934,134.64,134.57,6.6964]
[1767871917810,7.5197361,134.64,134.57,6.6964]
[1767871920205,7.5198361,134.63,134.57,6.6964]
[1767871920406,7.5198361,134.63,134.52,208.4025]
[1767871920407,0.8263361,134.63,134.51,6.88928426]
[1767871920610,0.8263361,134.61,134.5,88.60574265]
[1767871920823,0.8263361,134.6,134.5,88.60574265]
[1767871921026,0.8263361,134.58,134.5,95.30554265]
[1767871921315,0.8263361,134.58,134.5,88.60574265]
[1767871922020,0.8263361,134.58,134.51,0.80574265]
[1767871922212,6.6954,134.6,134.51,0.80574265]
[1767871922513,6.6956,134.59,134.52,6.6988]
[1767871923919,0.77916347,134.63,134.54,0.78968561]
[1767871924422,0.77916347,134.63,134.56,0.78968561]
[1767871924624,0.77916347,134.65,134.56,0.78968561]
[1767871924820,6.6931,134.64,134.57,6.6964]
[1767871925132,0.77916347,134.65,134.57,0.78968561]
[1767871925418,88.59916347,134.68,134.57,0.78968561]
[1767871926023,95.29056347,134.68,134.6,6.6949]
[1767871926420,88.59916347,134.68,134.6,6.6949]
[1767871927420,0.77916347,134.67,134.6,6.6949]
[1767871927621,0.77916347,134.7,134.61,0.78968561]
[1767871928217,7.47026347,134.68,134.61,0.78968561]
[1767871928523,0.77916347,134.68,134.59,6.6951]
[1767871928922,0.77916347,134.68,134.59,7.48478561]
[1767871929519,6.6916,134.67,134.59,7.48478561]
[1767871931727,0.77916347,134.65,134.57,6.696]